[Event "Titled Tuesday Blitz November 29 Late 2022"]
[White "Bogaudinov, Rushan"]
[Black "Bobkov, Vadim"]
[WhiteFideId "4129288"]
[BlackFideId "34110876"]
[WhiteElo "1997"]
[BlackElo "2172"]
[Result "1/2-1/2"]
[Round "02"]
[TimeControl "180+1"]
[Date "2022.11.30"]
[WhiteClock "0:00:09"]
[BlackClock "0:00:05"]

1. d4 {[%clk 0:02:33]}  c5 {[%clk 0:03:00]} 2. dxc5 {[%clk 0:02:31]}  e6 {[%clk 0:03:00]} 3. e4 {[%clk 0:02:30]}  Bxc5 {[%clk 0:03:00]} 4. Nf3 {[%clk 0:02:31]}  Nc6 {[%clk 0:02:59]} 5. Bd3 {[%clk 0:02:29]}  Nf6 {[%clk 0:02:58]} 6. O-O {[%clk 0:02:29]}  b6 {[%clk 0:02:50]} 7. a3 {[%clk 0:02:28]}  Bb7 {[%clk 0:02:50]} 8. Qe2 {[%clk 0:02:25]}  h6 {[%clk 0:02:37]} 9. b4 {[%clk 0:02:23]}  Nd4 {[%clk 0:02:32]} 10. Nxd4 {[%clk 0:02:20]}  Bxd4 {[%clk 0:02:33]} 11. c3 {[%clk 0:02:21]}  Be5 {[%clk 0:02:33]} 12. f4 {[%clk 0:02:18]}  Bc7 {[%clk 0:02:33]} 13. e5 {[%clk 0:02:14]}  Nd5 {[%clk 0:02:33]} 14. c4 {[%clk 0:02:12]}  Ne7 {[%clk 0:02:34]} 15. Nc3 {[%clk 0:02:07]}  d5 {[%clk 0:02:27]} 16. Nb5 {[%clk 0:01:59]}  O-O {[%clk 0:02:19]} 17. Bb2 {[%clk 0:01:53]}  a6 {[%clk 0:02:04]} 18. Nxc7 {[%clk 0:01:53]}  Qxc7 {[%clk 0:02:05]} 19. Rac1 {[%clk 0:01:53]}  Qd7 {[%clk 0:02:02]} 20. c5 {[%clk 0:01:42]}  bxc5 {[%clk 0:01:57]} 21. bxc5 {[%clk 0:01:43]}  d4 {[%clk 0:01:55]} 22. Rc4 {[%clk 0:01:22]}  Qd5 {[%clk 0:01:46]} 23. Rfc1 {[%clk 0:01:07]}  Rfd8 {[%clk 0:01:31]} 24. Rxd4 {[%clk 0:00:59]}  Qb3 {[%clk 0:01:00]} 25. Rd6 {[%clk 0:00:49]}  Bd5 {[%clk 0:00:55]} 26. Qc2 {[%clk 0:00:32]}  Qb7 {[%clk 0:00:52]} 27. Bd4 {[%clk 0:00:28]}  Rdc8 {[%clk 0:00:47]} 28. Rb1 {[%clk 0:00:26]}  Qc7 {[%clk 0:00:47]} 29. Bh7+ {[%clk 0:00:24]}  Kf8 {[%clk 0:00:46]} 30. f5 {[%clk 0:00:22]}  exf5 {[%clk 0:00:29]} 31. Bxf5 {[%clk 0:00:23]}  Rd8 {[%clk 0:00:29]} 32. Rf1 {[%clk 0:00:18]}  Kg8 {[%clk 0:00:28]} 33. Bh7+ {[%clk 0:00:18]}  Kh8 {[%clk 0:00:28]} 34. Be4 {[%clk 0:00:17]}  Rac8 {[%clk 0:00:25]} 35. Bxd5 {[%clk 0:00:16]}  Nxd5 {[%clk 0:00:26]} 36. Rxd8+ {[%clk 0:00:15]}  Rxd8 {[%clk 0:00:26]} 37. Qe4 {[%clk 0:00:14]}  Qe7 {[%clk 0:00:24]} 38. c6 {[%clk 0:00:12]}  Qe6 {[%clk 0:00:23]} 39. Rc1 {[%clk 0:00:12]}  Rc8 {[%clk 0:00:23]} 40. Qc2 {[%clk 0:00:10]}  Rc7 {[%clk 0:00:13]} 41. Qc4 {[%clk 0:00:09]}  Ne7 {[%clk 0:00:14]} 42. Qxa6 {[%clk 0:00:09]}  Nxc6 {[%clk 0:00:11]} 43. Bb6 {[%clk 0:00:08]}  Rc8 {[%clk 0:00:07]} 44. Qb7 {[%clk 0:00:07]}  Kh7 {[%clk 0:00:02]} 45. a4 {[%clk 0:00:07]}  Ne7 {[%clk 0:00:02]} 46. Rxc8 {[%clk 0:00:07]}  Nxc8 {[%clk 0:00:03]} 47. Qe4+ {[%clk 0:00:06]}  g6 {[%clk 0:00:03]} 48. Be3 {[%clk 0:00:06]}  Qa2 {[%clk 0:00:03]} 49. h4 {[%clk 0:00:04]}  Ne7 {[%clk 0:00:03]} 50. Qf4 {[%clk 0:00:05]}  Nf5 {[%clk 0:00:03]} 51. g4 {[%clk 0:00:05]}  Qb1+ {[%clk 0:00:03]} 52. Kg2 {[%clk 0:00:05]}  Qc2+ {[%clk 0:00:03]} 53. Kf3 {[%clk 0:00:05]}  Qd1+ {[%clk 0:00:03]} 54. Ke4 {[%clk 0:00:05]}  Qc2+ {[%clk 0:00:03]} 55. Kf3 {[%clk 0:00:05]}  Qd1+ {[%clk 0:00:03]} 56. Kf2 {[%clk 0:00:05]}  Qc2+ {[%clk 0:00:03]} 57. Bd2 {[%clk 0:00:05]}  Ne7 {[%clk 0:00:03]} 58. Qxf7+ {[%clk 0:00:05]}  Kh8 {[%clk 0:00:02]} 59. Qxe7 {[%clk 0:00:06]}  Qxd2+ {[%clk 0:00:03]} 60. Kf3 {[%clk 0:00:07]}  Qd3+ {[%clk 0:00:03]} 61. Kf4 {[%clk 0:00:07]}  Qd4+ {[%clk 0:00:03]} 62. Kf3 {[%clk 0:00:08]}  Qd3+ {[%clk 0:00:04]} 63. Kf4 {[%clk 0:00:08]}  Qd4+ {[%clk 0:00:04]} 64. Kf3 {[%clk 0:00:09]}  Qd3+ {[%clk 0:00:05]} 1/2-1/2


[Site "https://www.chess.com"]

[Event "Titled Tuesday Blitz November 29 Late 2022"]
[White "Boruchovsky, Avital"]
[Black "Khater, Sherif"]
[WhiteFideId "2800055"]
[BlackFideId "2034280"]
[WhiteElo "2458"]
[BlackElo "2526"]
[Result "1-0"]
[Round "02"]
[TimeControl "180+1"]
[Date "2022.11.30"]
[WhiteClock "0:00:53"]
[BlackClock "0:00:49"]

1. g3 {[%clk 0:03:00]}  d5 {[%clk 0:02:59]} 2. Nf3 {[%clk 0:03:00]}  Nf6 {[%clk 0:02:59]} 3. Bg2 {[%clk 0:03:00]}  g6 {[%clk 0:03:00]} 4. O-O {[%clk 0:02:59]}  Bg7 {[%clk 0:03:01]} 5. d3 {[%clk 0:03:00]}  O-O {[%clk 0:03:02]} 6. Nbd2 {[%clk 0:03:00]}  b6 {[%clk 0:03:02]} 7. e4 {[%clk 0:03:00]}  dxe4 {[%clk 0:03:02]} 8. dxe4 {[%clk 0:03:00]}  Bb7 {[%clk 0:03:03]} 9. e5 {[%clk 0:02:59]}  Nd5 {[%clk 0:02:59]} 10. Re1 {[%clk 0:02:57]}  e6 {[%clk 0:02:59]} 11. Ne4 {[%clk 0:02:52]}  h6 {[%clk 0:02:57]} 12. a3 {[%clk 0:02:50]}  a5 {[%clk 0:02:56]} 13. c4 {[%clk 0:02:47]}  Ne7 {[%clk 0:02:55]} 14. Qc2 {[%clk 0:02:47]}  Nbc6 {[%clk 0:02:51]} 15. Bf4 {[%clk 0:02:42]}  Nf5 {[%clk 0:02:40]} 16. Rad1 {[%clk 0:02:28]}  Qe7 {[%clk 0:02:40]} 17. h4 {[%clk 0:02:12]}  Rad8 {[%clk 0:02:38]} 18. Qc1 {[%clk 0:02:01]}  Kh7 {[%clk 0:02:31]} 19. Nf6+ {[%clk 0:01:28]}  Bxf6 {[%clk 0:02:10]} 20. exf6 {[%clk 0:01:28]}  Qxf6 {[%clk 0:01:56]} 21. Bxc7 {[%clk 0:01:27]}  Rxd1 {[%clk 0:01:56]} 22. Rxd1 {[%clk 0:01:27]}  Ncd4 {[%clk 0:01:42]} 23. Nxd4 {[%clk 0:01:23]}  Nxd4 {[%clk 0:01:30]} 24. Qe3 {[%clk 0:01:22]}  Bxg2 {[%clk 0:01:25]} 25. Qxd4 {[%clk 0:01:13]}  Qf3 {[%clk 0:01:06]} 26. Rd3 {[%clk 0:01:12]}  Qb7 {[%clk 0:01:06]} 27. Qxb6 {[%clk 0:01:04]}  Rc8 {[%clk 0:00:51]} 28. Qxb7 {[%clk 0:00:57]}  Bxb7 {[%clk 0:00:52]} 29. Rd7 {[%clk 0:00:57]}  Kg8 {[%clk 0:00:50]} 30. Bxa5 {[%clk 0:00:53]}  Rxc4 {[%clk 0:00:49]} 31. Rxb7 {[%clk 0:00:53]} 1-0


[Site "https://www.chess.com"]

[Event "Titled Tuesday Blitz November 29 Late 2022"]
[White "Brown, Andrew"]
[Black "Fernandez Guillen, Ernesto J."]
[WhiteFideId "3206513"]
[BlackFideId "3512428"]
[WhiteElo "2245"]
[BlackElo "2450"]
[Result "0-1"]
[Round "02"]
[TimeControl "180+1"]
[Date "2022.11.30"]
[WhiteClock "0:00:03"]
[BlackClock "0:00:02"]

1. d4 {[%clk 0:02:59]}  Nf6 {[%clk 0:02:57]} 2. c4 {[%clk 0:02:58]}  e6 {[%clk 0:02:43]} 3. Nc3 {[%clk 0:02:58]}  b6 {[%clk 0:02:44]} 4. g3 {[%clk 0:02:57]}  Bb7 {[%clk 0:02:44]} 5. Nf3 {[%clk 0:02:57]}  Bb4 {[%clk 0:02:41]} 6. Bg2 {[%clk 0:02:56]}  O-O {[%clk 0:02:41]} 7. O-O {[%clk 0:02:57]}  Bxc3 {[%clk 0:02:37]} 8. bxc3 {[%clk 0:02:56]}  d6 {[%clk 0:02:38]} 9. a4 {[%clk 0:02:50]}  Nbd7 {[%clk 0:02:09]} 10. a5 {[%clk 0:02:47]}  Qe7 {[%clk 0:02:03]} 11. a6 {[%clk 0:02:41]}  Be4 {[%clk 0:01:57]} 12. Re1 {[%clk 0:02:32]}  e5 {[%clk 0:01:39]} 13. Bh3 {[%clk 0:01:58]}  Bg6 {[%clk 0:00:42]} 14. Nh4 {[%clk 0:01:53]}  h6 {[%clk 0:00:37]} 15. Nxg6 {[%clk 0:01:49]}  fxg6 {[%clk 0:00:38]} 16. e4 {[%clk 0:01:43]}  Kh7 {[%clk 0:00:36]} 17. Bg2 {[%clk 0:01:27]}  Rae8 {[%clk 0:00:36]} 18. f3 {[%clk 0:01:11]}  c5 {[%clk 0:00:31]} 19. Be3 {[%clk 0:01:09]}  g5 {[%clk 0:00:22]} 20. Qd3 {[%clk 0:01:06]}  Kh8 {[%clk 0:00:20]} 21. Red1 {[%clk 0:01:00]}  Rd8 {[%clk 0:00:18]} 22. Ra2 {[%clk 0:00:34]}  g4 {[%clk 0:00:16]} 23. f4 {[%clk 0:00:32]}  exf4 {[%clk 0:00:14]} 24. Bxf4 {[%clk 0:00:32]}  Nh5 {[%clk 0:00:09]} 25. Bc1 {[%clk 0:00:29]}  Qf7 {[%clk 0:00:06]} 26. Rf1 {[%clk 0:00:27]}  Qg6 {[%clk 0:00:05]} 27. Raf2 {[%clk 0:00:26]}  Rxf2 {[%clk 0:00:05]} 28. Rxf2 {[%clk 0:00:27]}  Nhf6 {[%clk 0:00:06]} 29. Bf4 {[%clk 0:00:24]}  Nf8 {[%clk 0:00:05]} 30. Bf1 {[%clk 0:00:16]}  Ne6 {[%clk 0:00:05]} 31. Bg2 {[%clk 0:00:14]}  cxd4 {[%clk 0:00:03]} 32. cxd4 {[%clk 0:00:13]}  Qe8 {[%clk 0:00:04]} 33. Bd2 {[%clk 0:00:12]}  Qa4 {[%clk 0:00:04]} 34. h4 {[%clk 0:00:10]}  gxh3 {[%clk 0:00:03]} 35. Bxh3 {[%clk 0:00:10]}  Qd1+ {[%clk 0:00:04]} 36. Kg2 {[%clk 0:00:10]}  Ng5 {[%clk 0:00:04]} 37. Bf5 {[%clk 0:00:09]}  Ng4 {[%clk 0:00:02]} 38. Qe2 {[%clk 0:00:07]}  Qxe2 {[%clk 0:00:02]} 39. Rxe2 {[%clk 0:00:07]}  Nf6 {[%clk 0:00:03]} 40. Bxg5 {[%clk 0:00:07]}  hxg5 {[%clk 0:00:04]} 41. Kf3 {[%clk 0:00:08]}  Kg8 {[%clk 0:00:04]} 42. Be6+ {[%clk 0:00:08]}  Kf8 {[%clk 0:00:04]} 43. d5 {[%clk 0:00:08]}  Ke7 {[%clk 0:00:05]} 44. e5 {[%clk 0:00:08]}  dxe5 {[%clk 0:00:05]} 45. Rxe5 {[%clk 0:00:09]}  g4+ {[%clk 0:00:05]} 46. Ke3 {[%clk 0:00:08]}  Kd6 {[%clk 0:00:06]} 47. Rg5 {[%clk 0:00:08]}  Kc5 {[%clk 0:00:06]} 48. Rxg7 {[%clk 0:00:08]}  Kxc4 {[%clk 0:00:07]} 49. Rxa7 {[%clk 0:00:05]}  Kb5 {[%clk 0:00:07]} 50. Rf7 {[%clk 0:00:05]}  Nxd5+ {[%clk 0:00:07]} 51. Bxd5 {[%clk 0:00:05]}  Rxd5 {[%clk 0:00:07]} 52. a7 {[%clk 0:00:05]}  Rd8 {[%clk 0:00:08]} 53. Kf4 {[%clk 0:00:04]}  Rg8 {[%clk 0:00:08]} 54. Rb7 {[%clk 0:00:04]}  Ra8 {[%clk 0:00:04]} 55. Kxg4 {[%clk 0:00:04]}  Kc6 {[%clk 0:00:04]} 56. Rg7 {[%clk 0:00:04]}  b5 {[%clk 0:00:04]} 57. Kf3 {[%clk 0:00:05]}  b4 {[%clk 0:00:05]} 58. Ke3 {[%clk 0:00:05]}  Kb5 {[%clk 0:00:04]} 59. Kd3 {[%clk 0:00:04]}  Ka4 {[%clk 0:00:04]} 60. g4 {[%clk 0:00:05]}  Ka3 {[%clk 0:00:04]} 61. Kc2 {[%clk 0:00:05]}  b3+ {[%clk 0:00:04]} 62. Kb1 {[%clk 0:00:05]}  Rd8 {[%clk 0:00:03]} 63. Rc7 {[%clk 0:00:03]}  Ra8 {[%clk 0:00:02]} 64. g5 {[%clk 0:00:03]}  Rh8 {[%clk 0:00:03]} 65. g6 {[%clk 0:00:02]}  Rh1+ {[%clk 0:00:01]} 66. Rc1 {[%clk 0:00:02]}  Rh8 {[%clk 0:00:02]} 67. g7 {[%clk 0:00:02]}  Rg8 {[%clk 0:00:02]} 68. Rc7 {[%clk 0:00:03]}  Ra8 {[%clk 0:00:01]} 69. Rb7 {[%clk 0:00:03]}  Re8 {[%clk 0:00:01]} 70. Rb8 {[%clk 0:00:03]}  Re1# {[%clk 0:00:02]} 0-1


[Site "https://www.chess.com"]

[Event "Titled Tuesday Blitz November 29 Late 2022"]
[White "Burke, Paul"]
[Black "Sarkar, Justin"]
[WhiteFideId "2605767"]
[BlackFideId "2010011"]
[WhiteElo "1909"]
[BlackElo "2239"]
[Result "0-1"]
[Round "02"]
[TimeControl "180+1"]
[Date "2022.11.30"]
[WhiteClock "0:00:42"]
[BlackClock "0:00:08"]

1. e4 {[%clk 0:03:00]}  c5 {[%clk 0:02:58]} 2. d4 {[%clk 0:03:00]}  cxd4 {[%clk 0:02:57]} 3. c3 {[%clk 0:03:00]}  dxc3 {[%clk 0:02:49]} 4. Nxc3 {[%clk 0:03:00]}  Nc6 {[%clk 0:02:43]} 5. Nf3 {[%clk 0:03:00]}  e6 {[%clk 0:02:31]} 6. Bf4 {[%clk 0:02:58]}  a6 {[%clk 0:02:29]} 7. Bd3 {[%clk 0:02:52]}  Bb4 {[%clk 0:02:20]} 8. Qe2 {[%clk 0:02:51]}  Nge7 {[%clk 0:02:16]} 9. Rd1 {[%clk 0:02:48]}  Ng6 {[%clk 0:02:13]} 10. Bg3 {[%clk 0:02:48]}  O-O {[%clk 0:02:04]} 11. e5 {[%clk 0:02:45]}  f5 {[%clk 0:01:51]} 12. exf6 {[%clk 0:02:29]}  Qxf6 {[%clk 0:01:50]} 13. h4 {[%clk 0:02:17]}  d5 {[%clk 0:01:44]} 14. h5 {[%clk 0:02:14]}  Nf4 {[%clk 0:01:39]} 15. Bxf4 {[%clk 0:01:58]}  Qxf4 {[%clk 0:01:39]} 16. Rh4 {[%clk 0:01:53]}  Qf6 {[%clk 0:01:30]} 17. Bb1 {[%clk 0:01:40]}  e5 {[%clk 0:00:56]} 18. Rxb4 {[%clk 0:01:25]}  Nxb4 {[%clk 0:00:53]} 19. Nxd5 {[%clk 0:01:25]}  Nxd5 {[%clk 0:00:51]} 20. Rxd5 {[%clk 0:01:24]}  Bg4 {[%clk 0:00:44]} 21. Rxe5 {[%clk 0:01:15]}  Bxf3 {[%clk 0:00:36]} 22. gxf3 {[%clk 0:01:16]}  Qxe5 {[%clk 0:00:34]} 23. Qxe5 {[%clk 0:01:09]}  Rae8 {[%clk 0:00:33]} 24. Qxe8 {[%clk 0:01:09]}  Rxe8+ {[%clk 0:00:33]} 25. Be4 {[%clk 0:01:08]}  Re5 {[%clk 0:00:31]} 26. Kd2 {[%clk 0:01:05]}  b6 {[%clk 0:00:28]} 27. Bb7 {[%clk 0:01:03]}  a5 {[%clk 0:00:27]} 28. Be4 {[%clk 0:00:58]}  Rxh5 {[%clk 0:00:25]} 29. Ke3 {[%clk 0:00:57]}  Rb5 {[%clk 0:00:20]} 30. b3 {[%clk 0:00:57]}  h5 {[%clk 0:00:19]} 31. Bd3 {[%clk 0:00:56]}  Re5+ {[%clk 0:00:16]} 32. Kf4 {[%clk 0:00:55]}  Re1 {[%clk 0:00:15]} 33. Bc4+ {[%clk 0:00:55]}  Kf8 {[%clk 0:00:15]} 34. a4 {[%clk 0:00:55]}  Rg1 {[%clk 0:00:13]} 35. Be6 {[%clk 0:00:52]}  h4 {[%clk 0:00:12]} 36. Bf5 {[%clk 0:00:50]}  Ke7 {[%clk 0:00:11]} 37. Bg4 {[%clk 0:00:49]}  Kf6 {[%clk 0:00:10]} 38. Bd7 {[%clk 0:00:48]}  g5+ {[%clk 0:00:09]} 39. Ke3 {[%clk 0:00:47]}  Re1+ {[%clk 0:00:09]} 40. Kd2 {[%clk 0:00:46]}  Rh1 {[%clk 0:00:08]} 41. Ke3 {[%clk 0:00:44]}  h3 {[%clk 0:00:08]} 42. Bxh3 {[%clk 0:00:43]}  Rxh3 {[%clk 0:00:08]} 43. Ke4 {[%clk 0:00:44]}  Ke6 {[%clk 0:00:08]} 44. Ke3 {[%clk 0:00:43]}  Ke5 {[%clk 0:00:08]} 45. Ke2 {[%clk 0:00:43]}  Kd4 {[%clk 0:00:08]} 46. Kd2 {[%clk 0:00:42]}  Rxf3 {[%clk 0:00:08]} 47. Ke2 {[%clk 0:00:42]}  g4 {[%clk 0:00:08]} 0-1


[Site "https://www.chess.com"]

[Event "Titled Tuesday Blitz November 29 Late 2022"]
[White "Carlsen, Magnus"]
[Black "Nasuta, Grzegorz"]
[WhiteFideId "1503014"]
[BlackFideId "1141686"]
[WhiteElo "3230"]
[BlackElo "2697"]
[Result "1-0"]
[Round "02"]
[TimeControl "180+1"]
[Date "2022.11.30"]
[WhiteClock "0:01:15"]
[BlackClock "0:00:05"]

1. e4 {[%clk 0:03:00]}  c5 {[%clk 0:02:58]} 2. Nf3 {[%clk 0:02:54]}  d6 {[%clk 0:02:58]} 3. d4 {[%clk 0:02:49]}  cxd4 {[%clk 0:02:59]} 4. Nxd4 {[%clk 0:02:49]}  Nf6 {[%clk 0:02:59]} 5. Nc3 {[%clk 0:02:50]}  a6 {[%clk 0:03:00]} 6. Rg1 {[%clk 0:02:48]}  e5 {[%clk 0:02:55]} 7. Nb3 {[%clk 0:02:48]}  Be6 {[%clk 0:02:54]} 8. g4 {[%clk 0:02:44]}  d5 {[%clk 0:02:54]} 9. exd5 {[%clk 0:02:44]}  Nxd5 {[%clk 0:02:55]} 10. Nxd5 {[%clk 0:02:45]}  Qxd5 {[%clk 0:02:56]} 11. Qxd5 {[%clk 0:02:44]}  Bxd5 {[%clk 0:02:57]} 12. Be3 {[%clk 0:02:44]}  Nc6 {[%clk 0:02:50]} 13. O-O-O {[%clk 0:02:44]}  O-O-O {[%clk 0:02:49]} 14. Bb6 {[%clk 0:02:33]}  Rd7 {[%clk 0:02:47]} 15. Nc5 {[%clk 0:02:16]}  Bxc5 {[%clk 0:02:32]} 16. Bxc5 {[%clk 0:02:17]}  Rhd8 {[%clk 0:02:32]} 17. Bb6 {[%clk 0:02:17]}  Bf3 {[%clk 0:02:32]} 18. Rd3 {[%clk 0:01:54]}  e4 {[%clk 0:01:52]} 19. Rxd7 {[%clk 0:01:53]}  Rxd7 {[%clk 0:01:53]} 20. Bh3 {[%clk 0:01:43]}  g5 {[%clk 0:01:49]} 21. b3 {[%clk 0:01:43]}  Ne5 {[%clk 0:01:40]} 22. Re1 {[%clk 0:01:41]}  h6 {[%clk 0:01:30]} 23. Ba5 {[%clk 0:01:40]}  Ng6 {[%clk 0:01:25]} 24. Bf1 {[%clk 0:01:39]}  Nf4 {[%clk 0:01:18]} 25. h3 {[%clk 0:01:37]}  f6 {[%clk 0:01:03]} 26. Bb6 {[%clk 0:01:33]}  Ng2 {[%clk 0:00:23]} 27. Bxg2 {[%clk 0:01:31]}  Bxg2 {[%clk 0:00:24]} 28. Re3 {[%clk 0:01:30]}  Bf3 {[%clk 0:00:24]} 29. Rc3+ {[%clk 0:01:31]}  Kb8 {[%clk 0:00:23]} 30. Kb2 {[%clk 0:01:31]}  h5 {[%clk 0:00:19]} 31. gxh5 {[%clk 0:01:28]}  Bxh5 {[%clk 0:00:20]} 32. h4 {[%clk 0:01:25]}  gxh4 {[%clk 0:00:11]} 33. Rh3 {[%clk 0:01:25]}  Rd5 {[%clk 0:00:10]} 34. Rxh4 {[%clk 0:01:23]}  Kc8 {[%clk 0:00:10]} 35. Rxe4 {[%clk 0:01:23]}  Kd7 {[%clk 0:00:11]} 36. Rf4 {[%clk 0:01:22]}  Ke6 {[%clk 0:00:10]} 37. Be3 {[%clk 0:01:22]}  f5 {[%clk 0:00:10]} 38. a4 {[%clk 0:01:21]}  Bg4 {[%clk 0:00:10]} 39. Kc3 {[%clk 0:01:20]}  Bd1 {[%clk 0:00:09]} 40. Rb4 {[%clk 0:01:18]}  b5 {[%clk 0:00:09]} 41. Rh4 {[%clk 0:01:19]}  Rd6 {[%clk 0:00:06]} 42. Kb2 {[%clk 0:01:17]}  Rc6 {[%clk 0:00:06]} 43. c3 {[%clk 0:01:16]}  Kd5 {[%clk 0:00:06]} 44. Rd4+ {[%clk 0:01:15]}  Ke6 {[%clk 0:00:05]} 45. Rxd1 {[%clk 0:01:15]} 1-0


[Site "https://www.chess.com"]

[Event "Titled Tuesday Blitz November 29 Late 2022"]
[White "Chigaev, Maksim"]
[Black "Risteski, Emil"]
[WhiteFideId "4108116"]
[BlackFideId "15005267"]
[WhiteElo "2996"]
[BlackElo "2637"]
[Result "1-0"]
[Round "02"]
[TimeControl "180+1"]
[Date "2022.11.30"]
[WhiteClock "0:00:04"]
[BlackClock "0:00:01"]

1. e4 {[%clk 0:03:00]}  c5 {[%clk 0:02:54]} 2. Nf3 {[%clk 0:03:00]}  Nc6 {[%clk 0:02:54]} 3. Bb5 {[%clk 0:02:59]}  Nf6 {[%clk 0:02:55]} 4. Nc3 {[%clk 0:02:57]}  g6 {[%clk 0:02:49]} 5. O-O {[%clk 0:02:52]}  Bg7 {[%clk 0:02:49]} 6. Bxc6 {[%clk 0:02:46]}  dxc6 {[%clk 0:02:43]} 7. h3 {[%clk 0:02:45]}  O-O {[%clk 0:02:42]} 8. d3 {[%clk 0:02:40]}  Ne8 {[%clk 0:02:43]} 9. Be3 {[%clk 0:02:37]}  b6 {[%clk 0:02:42]} 10. Qd2 {[%clk 0:02:37]}  e5 {[%clk 0:02:36]} 11. Bh6 {[%clk 0:02:37]}  f6 {[%clk 0:02:27]} 12. Nh2 {[%clk 0:02:27]}  g5 {[%clk 0:02:27]} 13. Bxg7 {[%clk 0:02:25]}  Nxg7 {[%clk 0:02:28]} 14. b3 {[%clk 0:02:23]}  Ne6 {[%clk 0:02:28]} 15. Ng4 {[%clk 0:02:15]}  Nf4 {[%clk 0:02:25]} 16. Kh2 {[%clk 0:01:51]}  h5 {[%clk 0:02:09]} 17. Ne3 {[%clk 0:01:28]}  Be6 {[%clk 0:02:07]} 18. Ne2 {[%clk 0:00:56]}  Qd7 {[%clk 0:02:05]} 19. Qd1 {[%clk 0:00:52]}  h4 {[%clk 0:01:23]} 20. f3 {[%clk 0:00:32]}  Rf7 {[%clk 0:01:06]} 21. Ng4 {[%clk 0:00:29]}  Bxg4 {[%clk 0:01:05]} 22. fxg4 {[%clk 0:00:27]}  Rd8 {[%clk 0:00:59]} 23. Qe1 {[%clk 0:00:27]}  b5 {[%clk 0:00:45]} 24. Rd1 {[%clk 0:00:19]}  Qe6 {[%clk 0:00:38]} 25. Ng1 {[%clk 0:00:16]}  Rfd7 {[%clk 0:00:37]} 26. Ne2 {[%clk 0:00:05]}  c4 {[%clk 0:00:37]} 27. bxc4 {[%clk 0:00:06]}  bxc4 {[%clk 0:00:37]} 28. Nxf4 {[%clk 0:00:06]}  exf4 {[%clk 0:00:35]} 29. Rf3 {[%clk 0:00:07]}  Qe5 {[%clk 0:00:28]} 30. Qb4 {[%clk 0:00:05]}  cxd3 {[%clk 0:00:27]} 31. cxd3 {[%clk 0:00:06]}  c5 {[%clk 0:00:21]} 32. Qc4+ {[%clk 0:00:06]}  Kg7 {[%clk 0:00:22]} 33. Rb1 {[%clk 0:00:07]}  Rd4 {[%clk 0:00:15]} 34. Rb7+ {[%clk 0:00:07]}  R8d7 {[%clk 0:00:15]} 35. Qb5 {[%clk 0:00:05]}  Rxb7 {[%clk 0:00:13]} 36. Qxb7+ {[%clk 0:00:05]}  Kg6 {[%clk 0:00:12]} 37. Qxa7 {[%clk 0:00:05]}  c4 {[%clk 0:00:08]} 38. dxc4 {[%clk 0:00:04]}  Rxe4 {[%clk 0:00:06]} 39. Qa8 {[%clk 0:00:04]}  Re3 {[%clk 0:00:03]} 40. Qg8+ {[%clk 0:00:04]}  Kh6 {[%clk 0:00:02]} 41. Qf8+ {[%clk 0:00:04]}  Kg6 {[%clk 0:00:03]} 42. Qa8 {[%clk 0:00:05]}  Rc3 {[%clk 0:00:01]} 43. Qd5 {[%clk 0:00:04]} 1-0


[Site "https://www.chess.com"]

[Event "Titled Tuesday Blitz November 29 Late 2022"]
[White "Corrales Jimenez, Fidel"]
[Black "O`Gorman, Tom"]
[WhiteFideId "3506690"]
[BlackFideId "2508249"]
[WhiteElo "2541"]
[BlackElo "2271"]
[Result "1-0"]
[Round "02"]
[TimeControl "180+1"]
[Date "2022.11.30"]
[WhiteClock "0:00:09"]
[BlackClock "0:00:17"]

1. e4 {[%clk 0:03:00]}  c5 {[%clk 0:02:56]} 2. Nf3 {[%clk 0:02:57]}  d6 {[%clk 0:02:57]} 3. d4 {[%clk 0:02:57]}  cxd4 {[%clk 0:02:58]} 4. Nxd4 {[%clk 0:02:58]}  Nf6 {[%clk 0:02:58]} 5. Nc3 {[%clk 0:02:58]}  a6 {[%clk 0:02:59]} 6. Bc4 {[%clk 0:02:56]}  e6 {[%clk 0:02:59]} 7. f3 {[%clk 0:02:53]}  Be7 {[%clk 0:02:59]} 8. Be3 {[%clk 0:02:53]}  O-O {[%clk 0:02:58]} 9. Qd2 {[%clk 0:02:53]}  b5 {[%clk 0:02:58]} 10. Bb3 {[%clk 0:02:53]}  Bd7 {[%clk 0:02:52]} 11. a3 {[%clk 0:02:51]}  Nc6 {[%clk 0:02:52]} 12. g4 {[%clk 0:02:51]}  Nxd4 {[%clk 0:02:37]} 13. Bxd4 {[%clk 0:02:52]}  a5 {[%clk 0:02:37]} 14. g5 {[%clk 0:02:45]}  Nh5 {[%clk 0:02:36]} 15. Rg1 {[%clk 0:02:45]}  b4 {[%clk 0:02:30]} 16. axb4 {[%clk 0:02:46]}  axb4 {[%clk 0:02:31]} 17. Na2 {[%clk 0:02:31]}  e5 {[%clk 0:02:16]} 18. Be3 {[%clk 0:02:31]}  Nf4 {[%clk 0:02:16]} 19. Bxf4 {[%clk 0:02:30]}  exf4 {[%clk 0:02:17]} 20. h4 {[%clk 0:02:27]}  Qb6 {[%clk 0:02:14]} 21. Qf2 {[%clk 0:02:16]}  Qc7 {[%clk 0:02:08]} 22. Rd1 {[%clk 0:02:15]}  d5 {[%clk 0:02:00]} 23. Rxd5 {[%clk 0:01:30]}  Be6 {[%clk 0:01:59]} 24. Qd2 {[%clk 0:01:15]}  Bc5 {[%clk 0:01:37]} 25. Rg2 {[%clk 0:01:15]}  Bxd5 {[%clk 0:01:29]} 26. Bxd5 {[%clk 0:01:15]}  Rfd8 {[%clk 0:01:24]} 27. Bxa8 {[%clk 0:00:45]}  Rxd2 {[%clk 0:01:23]} 28. Rxd2 {[%clk 0:00:46]}  g6 {[%clk 0:01:18]} 29. Kd1 {[%clk 0:00:40]}  Be3 {[%clk 0:01:02]} 30. Rd3 {[%clk 0:00:36]}  b3 {[%clk 0:00:53]} 31. Nc3 {[%clk 0:00:34]}  Qa5 {[%clk 0:00:48]} 32. cxb3 {[%clk 0:00:15]}  Qxa8 {[%clk 0:00:46]} 33. Kc2 {[%clk 0:00:15]}  Qa1 {[%clk 0:00:44]} 34. b4 {[%clk 0:00:15]}  Qf1 {[%clk 0:00:42]} 35. Nd5 {[%clk 0:00:15]}  Qe2+ {[%clk 0:00:39]} 36. Kc3 {[%clk 0:00:16]}  Bc1 {[%clk 0:00:36]} 37. Kc4 {[%clk 0:00:10]}  Bxb2 {[%clk 0:00:33]} 38. Nxf4 {[%clk 0:00:09]}  Qc2+ {[%clk 0:00:31]} 39. Kb5 {[%clk 0:00:10]}  Kg7 {[%clk 0:00:26]} 40. Rd7 {[%clk 0:00:08]}  Be5 {[%clk 0:00:21]} 41. Ne6+ {[%clk 0:00:08]}  Kg8 {[%clk 0:00:17]} 42. Rd8# {[%clk 0:00:09]} 1-0


[Site "https://www.chess.com"]